[Event "DVM U14 2021"]
[Site "Willingen"]
[Date "2022.08.15"]
[Round "6"]
[White "Isbilir, Levin"]
[Black "Englert, Luca"]
[Result "1/2-1/2"]
[ECO "D05"]
[WhiteElo "1629"]
[BlackElo "1741"]
[Annotator "NA RC"]
[PlyCount "210"]
[EventDate "2022.08.12"]
[EventType "team-tourn"]
[EventRounds "7"]
[EventCountry "GER"]
[SourceTitle "playchess.com"]
[Source "ChessBase"]
[SourceQuality "1"]
[TimeControl "40/5400+30:1800+30"]

1. d4 {[%emt 0:00:08]} d5 {[%emt 0:00:00]} 2. Nf3 {[%emt 0:00:19]} c5 {[%emt 0:00:00]} 3. e3 {[%emt 0:00:06]} Nf6 {[%emt 0:00:11]} 4. c3 {[%emt 0:00:06]} Nc6 {[%emt 0:00:08]} 5. Bd3 {[%emt 0:00:30]} Bg4 {[%emt 0:00:52]} 6. h3 {[%emt 0:00:32]} Bxf3 {[%emt 0:00:13]} 7. Qxf3 {[%emt 0:01:10]} Qb6 {[%emt 0:01:01]} 8. Nd2 {[%emt 0:00:27]} e5 {[%emt 0:00:30]} 9. dxe5 {[%emt 0:00:12]} Nxe5 {[%emt 0:00:13]} 10. Qe2 {[%emt 0:00:29]} Nxd3+ {[%emt 0:00:05]} 11. Qxd3 {[%emt 0:03:01]} Be7 {[%emt 0:00:43]} 12. O-O {[%emt 0:00:22]} O-O {[%emt 0:01:11]} 13. Nf3 {[%emt 0:04:51]} c4 {[%emt 0:04:18]} 14. Qc2 {[%emt 0:00:27]} Ne4 {[%emt 0:08:51]} 15. b3 {[%emt 0:03:58]} f5 {[%emt 0:10:02]} 16. Nd2 {[%emt 0:12:20]} Qe6 {[%emt 0:06:05]} 17. bxc4 {[%emt 0:00:34]} dxc4 {[%emt 0:00:57]} 18. Nxe4 {[%emt 0:00:24]} fxe4 {[%emt 0:24:41]} 19. Rd1 {[%emt 0:15:02]} Rf5 {[%emt 0:05:45]} 20. Rd4 {[%emt 0:00:29]} Re5 {[%emt 0:07:15]} 21. Bb2 {[%emt 0:03:26]} Bc5 {[%emt 0:00:43]} 22. Rd2 {[%emt 0:08:57]} Rg5 {[%emt 0:04:04]} 23. Rad1 {[%emt 0:09:38]} Bb6 {[%emt 0:02:59]} 24. Rd6 {[%emt 0:04:43]} Qe8 {[%emt 0:09:20]} 25. Qe2 {[%emt 0:04:20]} Rc8 {[%emt 0:01:37]} 26. Ba3 {[%emt 0:07:48]} h6 {[%emt 0:03:12]} 27. h4 {[%emt 0:04:13]} Qh5 {[%emt 0:01:16]} 28. Qxh5 {[%emt 0:00:01]} Rxh5 {[%emt 0:00:29]} 29. g3 {[%emt 0:00:12]} Ra5 {[%emt 0:00:47]} 30. Bb4 {[%emt 0:00:18]} Rxa2 {[%emt 0:01:12]} 31. Rd7 {[%emt 0:01:39]} a5 {[%emt 0:02:30]} 32. Rxb7 {[%emt 0:00:04]} axb4 {[%emt 0:00:51]} 33. Rdd7 {[%emt 0:00:12]} Rc7 {[%emt 0:01:37]} 34. Rdxc7 {[%emt 0:00:06]} Bxc7 {[%emt 0:00:16]} 35. Rxb4 {[%emt 0:02:32]} Be5 {[%emt 0:00:11]} 36. Rxc4 {[%emt 0:00:49]} Kf7 {[%emt 0:01:08]} 37. Rxe4 {[%emt 0:00:05]} Bxc3 {[%emt 0:03:00]} 38. g4 {[%emt 0:00:38]} Bf6 {[%emt 0:00:35]} 39. Rf4 {[%emt 0:02:59]} Ke6 {[%emt 0:00:38]} 40. h5 {[%emt 0:04:07]} Bg5 {[%emt 0:00:00]} 41. Rf5 {[%emt 0:03:24]} Ra4 {[%emt 0:02:42]} 42. f4 {[%emt 0:00:29]} Bd8 {[%emt 0:04:21]} 43. Rb5 {[%emt 0:03:02]} Ra2 {[%emt 0:08:06]} 44. g5 {[%emt 0:04:19]} hxg5 {[%emt 0:00:07]} 45. fxg5 {[%emt 0:01:46]} Re2 {[%emt 0:03:23]} 46. h6 {[%emt 0:00:09]} gxh6 {[%emt 0:00:05]} 47. gxh6 {[%emt 0:00:38]} Rxe3 {[%emt 0:08:52]} 48. Rh5 {[%emt 0:00:16]} Rg3+ {[%emt 0:00:22]} 49. Kf2 {[%emt 0:00:07]} Rg8 {[%emt 0:00:29]} 50. h7 {[%emt 0:00:06]} Rh8 {[%emt 0:00:38]} 51. Kf3 {[%emt 0:00:13]} Kf7 {[%emt 0:00:49]} 52. Ke4 {[%emt 0:00:22]} Kg6 {[%emt 0:00:40]} 53. Rh2 {[%emt 0:00:07]} Bg5 {[%emt 0:01:36]} 54. Kd5 {[%emt 0:00:07]} Bh6 {[%emt 0:01:09]} 55. Rg2+ {[%emt 0:00:05]} Kxh7 {[%emt 0:00:27]} 56. Ke6 {[%emt 0:00:14]} Rf8 {[%emt 0:00:31]} 57. Rg4 {[%emt 0:00:25]} Rf1 {[%emt 0:00:39]} 58. Rg2 {[%emt 0:00:33]} Bc1 {[%emt 0:00:30]} 59. Rg4 {[%emt 0:00:08]} Kh6 {[%emt 0:00:41]} 60. Rg2 {[%emt 0:00:05]} Bg5 {[%emt 0:00:47]} 61. Ke5 {[%emt 0:00:18]} Kg6 {[%emt 0:00:45]} 62. Ke6 {[%emt 0:00:11]} Re1+ {[%emt 0:00:20]} 63. Kd5 {[%emt 0:00:06]} Kf5 {[%emt 0:01:38]} 64. Rh2 {[%emt 0:00:16]} Rd1+ {[%emt 0:00:17]} 65. Kc4 {[%emt 0:00:22]} Ke4 {[%emt 0:00:56]} 66. Rh7 {[%emt 0:00:08]} Rc1+ {[%emt 0:00:06]} 67. Kb5 {[%emt 0:00:54]} Bf6 {[%emt 0:00:27]} 68. Rh6 {[%emt 0:00:10]} Be5 {[%emt 0:00:43]} 69. Rh4+ {[%emt 0:00:06]} Kd5 {[%emt 0:00:20]} 70. Rg4 {[%emt 0:00:07]} Rb1+ {[%emt 0:00:11]} 71. Rb4 {[%emt 0:00:38]} Rc1 {[%emt 0:00:21]} 72. Rh4 {[%emt 0:01:11]} Rc5+ {[%emt 0:00:17]} 73. Kb4 {[%emt 0:01:02]} Rc8 {[%emt 0:00:37]} 74. Kb3 {[%emt 0:00:52]} Rb8+ {[%emt 0:00:15]} 75. Kc2 {[%emt 0:00:05]} Rb2+ {[%emt 0:00:21]} 76. Kd3 {[%emt 0:00:05]} Rb3+ {[%emt 0:00:55]} 77. Ke2 {[%emt 0:01:26]} Bd4 {[%emt 0:00:31]} 78. Rg4 {[%emt 0:00:10]} Kc4 {[%emt 0:00:18]} 79. Rg8 {[%emt 0:00:54]} Re3+ {[%emt 0:00:22]} 80. Kd2 {[%emt 0:00:10]} Rf3 {[%emt 0:00:32]} 81. Rc8+ {[%emt 0:00:06]} Bc5 {[%emt 0:00:30]} 82. Re8 {[%emt 0:00:58]} Rf2+ {[%emt 0:00:24]} 83. Re2 {[%emt 0:00:10]} Rf1 {[%emt 0:00:53]} 84. Re8 {[%emt 0:00:12]} Bb4+ {[%emt 0:00:15]} 85. Kc2 {[%emt 0:00:03]} Rf2+ {[%emt 0:00:29]} 86. Kd1 {[%emt 0:00:47]} Kb3 {[%emt 0:01:26]} 87. Rb8 {[%emt 0:00:59]} Rd2+ {[%emt 0:00:04]} 88. Kc1 {[%emt 0:00:13]} Re2 {[%emt 0:00:40]} 89. Rd8 {[%emt 0:02:48]} Bc3 {[%emt 0:00:39]} 90. Rb8+ {[%emt 0:00:05]} Kc4 {[%emt 0:00:27]} 91. Rd8 {[%emt 0:00:22]} Bd4 {[%emt 0:00:34]} 92. Kd1 {[%emt 0:00:30]} Rg2 {[%emt 0:00:42]} 93. Ke1 {[%emt 0:00:08]} Kd3 {[%emt 0:00:16]} 94. Rf8 {[%emt 0:06:21]} Rc2 {[%emt 0:01:16]} 95. Kf1 {[%emt 0:02:39]} Bc5 {[%emt 0:01:04]} 96. Rf3+ {[%emt 0:00:46]} Ke4 {[%emt 0:00:27]} 97. Rf7 {[%emt 0:05:07]} Ke3 {[%emt 0:00:39]} 98. Rc7 {[%emt 0:01:05]} Rf2+ {[%emt 0:00:58]} 99. Ke1 {[%emt 0:02:22]} Bb4+ {[%emt 0:00:03]} 100. Kd1 {[%emt 0:00:55]} Rd2+ {[%emt 0:00:05]} 101. Kc1 {[%emt 0:00:06]} Ba3+ {[%emt 0:00:11]} 102. Kb1 {[%emt 0:03:30]} Rb2+ {[%emt 0:00:05]} 103. Ka1 {[%emt 0:00:04]} Rb3 {[%emt 0:00:38]} 104. Rc8 {[%emt 0:00:41]} Bb2+ {[%emt 0:00:32]} 105. Ka2 {[%emt 0:00:10]} Rb7 {[%emt 0:00:48]} 1/2-1/2

[Event "DVM U14 2021"]
[Site "Willingen"]
[Date "2022.08.15"]
[Round "6"]
[White "Mehner, Lorenz"]
[Black "Strauss, Florian"]
[Result "0-1"]
[ECO "E42"]
[WhiteElo "1602"]
[BlackElo "1527"]
[Annotator "NA RC"]
[PlyCount "55"]
[EventDate "2022.08.12"]
[EventType "team-tourn"]
[EventRounds "7"]
[EventCountry "GER"]
[SourceTitle "playchess.com"]
[Source "ChessBase"]
[SourceQuality "1"]
[TimeControl "40/5400+30:1800+30"]

1. d4 {[%emt 0:00:03]} Nf6 {[%emt 0:00:02]} 2. c4 {[%emt 0:02:23]} e6 {[%emt 0:01:36]} 3. Nc3 {[%emt 0:00:15]} Bb4 {[%emt 0:00:06]} 4. e3 {[%emt 0:00:52]} c5 {[%emt 0:01:11]} 5. Nge2 {[%emt 0:01:59]} b6 {[%emt 0:00:41]} 6. Bd2 {[%emt 0:01:37]} Bb7 {[%emt 0:01:36]} 7. Nb5 {[%emt 0:07:20]} Bxd2+ {[%emt 0:00:56]} 8. Qxd2 {[%emt 0:00:26]} d5 {[%emt 0:01:48]} 9. dxc5 {[%emt 0:01:42]} bxc5 {[%emt 0:02:23]} 10. cxd5 {[%emt 0:02:23]} exd5 {[%emt 0:01:44]} 11. b4 {[%emt 0:03:05]} a6 {[%emt 0:02:59]} 12. Na3 {[%emt 0:01:13]} c4 {[%emt 0:03:43]} 13. Nd4 {[%emt 0:05:10]} Ne4 {[%emt 0:04:24]} 14. Qb2 {[%emt 0:01:53]} c3 {[%emt 0:03:57]} 15. Qb3 {[%emt 0:02:49]} Qf6 {[%emt 0:03:48]} 16. Qc2 {[%emt 0:02:44]} Nc6 {[%emt 0:03:37]} 17. Nxc6 {[%emt 0:01:08]} Bxc6 {[%emt 0:00:35]} 18. Bd3 {[%emt 0:01:30]} O-O {[%emt 0:03:13]} 19. O-O {[%emt 0:04:37]} g6 {[%emt 0:04:57]} 20. Nb1 {[%emt 0:03:35]} Ng5 {[%emt 0:17:07]} 21. Qxc3 {[%emt 0:03:10]} Nf3+ {[%emt 0:02:25]} 22. Kh1 {[%emt 0:05:59]} d4 {[%emt 0:03:32]} 23. exd4 {[%emt 0:08:58]} Qd6 {[%emt 0:07:06]} 24. gxf3 {[%emt 0:04:24]} Bxf3+ {[%emt 0:01:29]} 25. Kg1 {[%emt 0:00:19]} Qf4 {[%emt 0:00:40]} 26. Rd1 {[%emt 0:05:23]} Qg4+ {[%emt 0:00:53]} 27. Kf1 {[%emt 0:00:17]} Rae8 {[%emt 0:03:12]} 28. Qe1 {[%emt 0:00:04]} 0-1

[Event "DVM U14 2021"]
[Site "Willingen"]
[Date "2022.08.15"]
[Round "6"]
[White "Gotfried, Elias"]
[Black "Liu, Leon"]
[Result "1-0"]
[ECO "B18"]
[WhiteElo "1589"]
[BlackElo "1256"]
[Annotator "NA RC"]
[PlyCount "51"]
[EventDate "2022.08.12"]
[EventType "team-tourn"]
[EventRounds "7"]
[EventCountry "GER"]
[SourceTitle "playchess.com"]
[Source "ChessBase"]
[SourceQuality "1"]
[TimeControl "40/5400+30:1800+30"]

1. e4 {[%emt 0:00:12]} c6 {[%emt 0:00:00]} 2. d4 {[%emt 0:00:04]} d5 {[%emt 0:00:00]} 3. Nd2 {[%emt 0:00:05]} dxe4 {[%emt 0:00:00]} 4. Nxe4 {[%emt 0:00:05]} Bf5 {[%emt 0:00:00]} 5. Ng3 {[%emt 0:00:04]} Bg6 {[%emt 0:00:00]} 6. Nf3 {[%emt 0:00:06]} Nd7 {[%emt 0:00:07]} 7. Bd3 {[%emt 0:00:10]} Bxd3 {[%emt 0:00:05]} 8. Qxd3 {[%emt 0:00:05]} e6 {[%emt 0:00:06]} 9. Bf4 {[%emt 0:00:26]} Ngf6 {[%emt 0:00:25]} 10. O-O {[%emt 0:00:59]} Be7 {[%emt 0:02:01]} 11. Rfe1 {[%emt 0:00:18]} O-O {[%emt 0:02:03]} 12. c4 {[%emt 0:04:01]} Rc8 {[%emt 0:00:49]} 13. Rad1 {[%emt 0:07:15]} Re8 {[%emt 0:01:43]} 14. a3 {[%emt 0:05:18]} c5 {[%emt 0:03:53]} 15. d5 {[%emt 0:00:45]} exd5 {[%emt 0:00:38]} 16. cxd5 {[%emt 0:00:09]} c4 17. Qc2 {[%emt 0:33:59]} Bc5 {[%emt 0:05:03]} 18. Rxe8+ {[%emt 0:00:00]} Qxe8 {[%emt 0:01:44]} 19. d6 {[%emt 0:00:00]} Rc6 {[%emt 0:04:26]} 20. Nf5 {[%emt 0:00:00]} Kh8 {[%emt 0:01:25]} 21. Ne7 {[%emt 0:00:00]} Rb6 {[%emt 0:06:27]} 22. h3 {[%emt 0:00:00]} Qb8 {[%emt 0:03:43]} 23. Ng5 {[%emt 0:00:00]} Qf8 {[%emt 0:02:31]} 24. Qxc4 {[%emt 0:00:00]} g6 {[%emt 0:00:12]} 25. Nxf7+ {[%emt 0:00:00]} Kg7 26. Bh6# {[%emt 0:52:31]} 1-0

[Event "DVM U14 2021"]
[Site "Willingen"]
[Date "2022.08.15"]
[Round "6"]
[White "Kiefhaber, Tobias"]
[Black "Goldinov, Daniel"]
[Result "0-1"]
[ECO "A80"]
[WhiteElo "1581"]
[BlackElo "1546"]
[Annotator "NA RC"]
[PlyCount "54"]
[EventDate "2022.08.12"]
[EventType "team-tourn"]
[EventRounds "7"]
[EventCountry "GER"]
[SourceTitle "playchess.com"]
[Source "ChessBase"]
[SourceQuality "1"]
[TimeControl "40/5400+30:1800+30"]

1. d4 {[%emt 0:00:05]} f5 {[%emt 0:00:16]} 2. Nf3 {[%emt 0:01:32]} Nf6 {[%emt 0:00:08]} 3. d5 {[%emt 0:02:43]} g6 {[%emt 0:03:51]} 4. c4 {[%emt 0:01:05]} Bg7 {[%emt 0:02:29]} 5. Nc3 {[%emt 0:01:12]} O-O {[%emt 0:00:20]} 6. Bf4 {[%emt 0:00:17]} Ne4 {[%emt 0:01:49]} 7. Qc1 {[%emt 0:03:42]} Nxc3 {[%emt 0:07:34]} 8. bxc3 {[%emt 0:00:06]} d6 {[%emt 0:00:13]} 9. Bh6 {[%emt 0:01:21]} e5 {[%emt 0:00:29]} 10. Bxg7 {[%emt 0:00:43]} Kxg7 {[%emt 0:00:18]} 11. h4 {[%emt 0:00:52]} h6 {[%emt 0:03:56]} 12. e3 {[%emt 0:04:35]} Nd7 {[%emt 0:03:54]} 13. Be2 {[%emt 0:03:18]} Nc5 {[%emt 0:00:16]} 14. Qc2 {[%emt 0:01:42]} Bd7 {[%emt 0:03:59]} 15. Nd2 {[%emt 0:00:46]} a5 {[%emt 0:11:08]} 16. f3 {[%emt 0:02:15]} a4 {[%emt 0:01:42]} 17. g4 {[%emt 0:01:15]} Be8 {[%emt 0:16:20]} 18. O-O-O {[%emt 0:04:01]} Qf6 {[%emt 0:04:49]} 19. Rdg1 {[%emt 0:01:36]} Kh8 {[%emt 0:06:08]} 20. g5 {[%emt 0:03:30]} Qg7 {[%emt 0:00:19]} 21. f4 {[%emt 0:02:09]} h5 {[%emt 0:06:44]} 22. Nf3 {[%emt 0:01:31]} Bd7 {[%emt 0:03:35]} 23. Re1 {[%emt 0:04:40]} Ra6 {[%emt 0:03:15]} 24. Bf1 {[%emt 0:05:11]} Rb6 {[%emt 0:01:55]} 25. Nd2 {[%emt 0:06:10]} a3 {[%emt 0:02:21]} 26. Nb1 {[%emt 0:02:16]} Rb2 {[%emt 0:04:01]} 27. Qd1 {[%emt 0:00:26]} Ba4 {[%emt 0:00:22]} 0-1

[Event "DVM U14 2021"]
[Site "Willingen"]
[Date "2022.08.15"]
[Round "6"]
[White "Widmann, Maximilian"]
[Black "Martin Fernandez, Félix"]
[Result "1-0"]
[ECO "A09"]
[WhiteElo "1573"]
[BlackElo "1026"]
[Annotator "NA RC"]
[PlyCount "37"]
[EventDate "2022.08.12"]
[EventType "team-tourn"]
[EventRounds "7"]
[EventCountry "GER"]
[SourceTitle "playchess.com"]
[Source "ChessBase"]
[SourceQuality "1"]
[TimeControl "40/5400+30:1800+30"]

1. Nf3 {[%emt 0:00:02]} d5 {[%emt 0:00:34]} 2. c4 {[%emt 0:01:05]} Nf6 {[%emt 0:00:42]} 3. g3 {[%emt 0:02:44]} Nc6 {[%emt 0:02:45]} 4. cxd5 {[%emt 0:02:05]} Nxd5 {[%emt 0:00:40]} 5. Nc3 {[%emt 0:01:31]} Bg4 {[%emt 0:02:56]} 6. Bg2 {[%emt 0:01:25]} Qd7 {[%emt 0:00:51]} 7. O-O {[%emt 0:03:09]} g6 {[%emt 0:02:37]} 8. d3 {[%emt 0:08:37]} O-O-O {[%emt 0:03:27]} 9. Bd2 {[%emt 0:05:30]} Bg7 {[%emt 0:02:44]} 10. Nxd5 {[%emt 0:04:51]} Qxd5 {[%emt 0:01:53]} 11. Bc3 {[%emt 0:04:05]} Bxc3 {[%emt 0:05:48]} 12. bxc3 {[%emt 0:00:00]} Qc5 {[%emt 0:03:22]} 13. Qb3 {[%emt 0:00:00]} f5 {[%emt 0:02:59]} 14. Rab1 {[%emt 0:00:00]} b6 {[%emt 0:05:25]} 15. d4 {[%emt 0:00:40]} Qd6 {[%emt 0:01:53]} 16. Qb5 {[%emt 0:10:53]} Na5 {[%emt 0:03:09]} 17. Ne5 {[%emt 0:05:05]} c5 {[%emt 0:05:10]} 18. Qa6+ {[%emt 0:05:14]} Nb7 {[%emt 0:02:44]} 19. Qxb7# {[%emt 0:02:27]} 1-0

[Event "DVM U14 2021"]
[Site "Willingen"]
[Date "2022.08.15"]
[Round "6"]
[White "Lipinsky, Pierre"]
[Black "Schaudienst, Arvid"]
[Result "1-0"]
[ECO "E73"]
[WhiteElo "1560"]
[BlackElo "1431"]
[Annotator "NA RC"]
[PlyCount "67"]
[EventDate "2022.08.12"]
[EventType "team-tourn"]
[EventRounds "7"]
[EventCountry "GER"]
[SourceTitle "playchess.com"]
[Source "ChessBase"]
[SourceQuality "1"]
[TimeControl "40/5400+30:1800+30"]

1. d4 {[%emt 0:00:07]} Nf6 {[%emt 0:00:00]} 2. c4 {[%emt 0:00:04]} g6 {[%emt 0:00:00]} 3. Nc3 {[%emt 0:00:08]} Bg7 {[%emt 0:00:00]} 4. e4 {[%emt 0:00:04]} d6 {[%emt 0:00:00]} 5. Be2 {[%emt 0:00:06]} O-O {[%emt 0:00:00]} 6. Be3 {[%emt 0:00:09]} e5 {[%emt 0:00:00]} 7. d5 {[%emt 0:00:28]} a5 {[%emt 0:00:05]} 8. Qd2 {[%emt 0:00:39]} Na6 {[%emt 0:00:25]} 9. f3 {[%emt 0:03:28]} Ne8 {[%emt 0:00:30]} 10. g4 {[%emt 0:08:41]} c6 {[%emt 0:01:40]} 11. h4 {[%emt 0:19:09]} cxd5 {[%emt 0:01:52]} 12. Nxd5 {[%emt 0:05:57]} Nf6 {[%emt 0:01:57]} 13. Nb6 {[%emt 0:05:55]} Rb8 {[%emt 0:01:45]} 14. Qxa5 {[%emt 0:13:52]} Be6 {[%emt 0:00:45]} 15. Qd2 {[%emt 0:02:17]} Nc5 {[%emt 0:03:12]} 16. Nd5 {[%emt 0:05:49]} Ra8 {[%emt 0:20:35]} 17. Qc1 {[%emt 0:09:56]} Bxd5 {[%emt 0:02:46]} 18. cxd5 {[%emt 0:02:53]} Qa5+ {[%emt 0:03:34]} 19. Bd2 {[%emt 0:03:42]} Qa4 {[%emt 0:06:18]} 20. Qc3 {[%emt 0:06:02]} Rfc8 {[%emt 0:07:23]} 21. Bd1 {[%emt 0:02:49]} Qa6 {[%emt 0:02:13]} 22. Be2 {[%emt 0:04:14]} Qa4 {[%emt 0:06:46]} 23. Qb4 {[%emt 0:04:57]} Qc2 {[%emt 0:01:54]} 24. Rc1 {[%emt 0:00:21]} Nd3+ {[%emt 0:00:06]} 25. Bxd3 {[%emt 0:00:08]} Qxd3 {[%emt 0:07:32]} 26. a3 {[%emt 0:00:59]} Rxc1+ {[%emt 0:00:01]} 27. Bxc1 {[%emt 0:00:05]} Qb1 {[%emt 0:02:27]} 28. Qc4 {[%emt 0:00:08]} b5 {[%emt 0:01:49]} 29. Qc6 {[%emt 0:00:12]} Ra4 {[%emt 0:03:20]} 30. Ne2 {[%emt 0:00:38]} Rc4 {[%emt 0:00:33]} 31. Qa8+ {[%emt 0:00:10]} Bf8 {[%emt 0:03:16]} 32. Kf2 {[%emt 0:00:00]} Qd3 {[%emt 0:00:00]} 33. Bh6 {[%emt 3:09:32]} Nxe4+ {[%emt 0:00:01]} 34. fxe4 {[%emt 0:00:02]} 1-0

[Event "DVM U14 2021"]
[Site "Willingen"]
[Date "2022.08.15"]
[Round "6"]
[White "von Beckh, Frieda"]
[Black "Herfurt, Manuel"]
[Result "1-0"]
[ECO "B13"]
[WhiteElo "1548"]
[BlackElo "1656"]
[Annotator "NA RC"]
[PlyCount "123"]
[EventDate "2022.08.12"]
[EventType "team-tourn"]
[EventRounds "7"]
[EventCountry "GER"]
[SourceTitle "playchess.com"]
[Source "ChessBase"]
[SourceQuality "1"]
[TimeControl "40/5400+30:1800+30"]

1. e4 {[%emt 0:00:03]} c6 {[%emt 0:00:00]} 2. d4 {[%emt 0:00:06]} d5 {[%emt 0:00:00]} 3. exd5 {[%emt 0:00:09]} cxd5 {[%emt 0:00:09]} 4. Bd3 {[%emt 0:00:27]} Nc6 {[%emt 0:00:26]} 5. c3 {[%emt 0:00:56]} Nf6 {[%emt 0:00:27]} 6. Bf4 {[%emt 0:02:15]} Bg4 {[%emt 0:00:09]} 7. Qb3 {[%emt 0:01:44]} Qd7 {[%emt 0:01:04]} 8. Nd2 {[%emt 0:02:39]} e6 {[%emt 0:01:22]} 9. Ngf3 {[%emt 0:07:15]} Na5 {[%emt 0:04:32]} 10. Qc2 {[%emt 0:06:48]} Bxf3 {[%emt 0:00:18]} 11. Nxf3 {[%emt 0:09:58]} Rc8 {[%emt 0:02:06]} 12. Ne5 {[%emt 0:00:39]} Qd8 {[%emt 0:01:29]} 13. Bb5+ {[%emt 0:00:39]} Nc6 {[%emt 0:02:46]} 14. Qa4 {[%emt 0:00:39]} Qb6 {[%emt 0:03:47]} 15. Qb3 {[%emt 0:06:07]} Be7 {[%emt 0:27:10]} 16. Nxc6 {[%emt 0:00:55]} bxc6 {[%emt 0:01:52]} 17. Bd3 {[%emt 0:03:08]} O-O {[%emt 0:07:53]} 18. O-O {[%emt 0:06:24]} h6 {[%emt 0:04:58]} 19. Qxb6 {[%emt 0:00:09]} axb6 {[%emt 0:00:13]} 20. Ba6 {[%emt 0:01:00]} Rcd8 {[%emt 0:03:56]} 21. a4 {[%emt 0:02:20]} Bd6 {[%emt 0:03:09]} 22. Bd2 {[%emt 0:04:08]} Rd7 {[%emt 0:03:26]} 23. Bd3 {[%emt 0:04:25]} Ra8 {[%emt 0:03:41]} 24. f3 {[%emt 0:04:45]} Rda7 {[%emt 0:01:10]} 25. Bc2 {[%emt 0:02:42]} Nd7 {[%emt 0:01:46]} 26. b4 {[%emt 0:07:50]} b5 {[%emt 0:00:54]} 27. a5 {[%emt 0:00:19]} Nb6 {[%emt 0:01:15]} 28. Bd3 {[%emt 0:03:17]} Nc4 {[%emt 0:00:28]} 29. Bxc4 {[%emt 0:00:50]} dxc4 {[%emt 0:00:35]} 30. f4 {[%emt 0:01:20]} f5 {[%emt 0:05:10]} 31. Rfe1 {[%emt 0:00:49]} Kf7 {[%emt 0:01:12]} 32. Kf2 {[%emt 0:03:51]} Kf6 {[%emt 0:03:43]} 33. Kf3 {[%emt 0:03:04]} g5 {[%emt 0:01:55]} 34. Re2 {[%emt 0:01:35]} g4+ {[%emt 0:02:23]} 35. Ke3 {[%emt 0:02:06]} h5 {[%emt 0:00:12]} 36. Be1 {[%emt 0:03:24]} Rh8 {[%emt 0:00:25]} 37. Bh4+ {[%emt 0:00:30]} Kf7 {[%emt 0:01:37]} 38. Rae1 {[%emt 0:01:28]} Rh6 {[%emt 0:00:47]} 39. Bg5 {[%emt 0:00:22]} Rg6 {[%emt 0:05:56]} 40. Bd8 {[%emt 0:03:54]} Bc7 {[%emt 0:00:32]} 41. Bxc7 {[%emt 0:30:09]} Rxc7 {[%emt 0:31:18]} 42. Kf2 {[%emt 0:04:36]} h4 {[%emt 0:02:46]} 43. Re5 {[%emt 0:00:34]} Ra7 {[%emt 0:01:21]} 44. Rc5 {[%emt 0:00:21]} Ra6 {[%emt 0:00:00]} 45. Rh1 {[%emt 0:00:00]} Rg8 {[%emt 0:00:00]} 46. g3 {[%emt 0:00:00]} h3 {[%emt 0:00:00]} 47. Re1 {[%emt 0:00:00]} Rg6 {[%emt 0:00:00]} 48. Ree5 {[%emt 0:00:00]} Rg8 {[%emt 0:00:00]} 49. d5 {[%emt 0:00:00]} exd5 {[%emt 0:00:00]} 50. Rxf5+ {[%emt 0:00:00]} Ke6 {[%emt 0:00:00]} 51. Re5+ {[%emt 0:00:00]} Kf6 {[%emt 0:00:00]} 52. Ke3 {[%emt 0:00:00]} Rg7 {[%emt 0:00:00]} 53. Kd4 {[%emt 0:00:00]} Rc7 {[%emt 0:00:00]} 54. Rh5 {[%emt 0:00:00]} Kg6 {[%emt 0:00:00]} 55. Rg5+ {[%emt 0:00:00]} Kf6 {[%emt 0:00:00]} 56. Re5 {[%emt 0:00:00]} Kg6 {[%emt 0:00:00]} 57. f5+ {[%emt 0:00:00]} Kf6 {[%emt 0:00:00]} 58. Rexd5 {[%emt 0:00:00]} Rc8 {[%emt 0:00:00]} 59. Rd6+ {[%emt 0:00:00]} Ke7 {[%emt 0:00:00]} 60. Ke5 {[%emt 0:00:00]} Rc7 {[%emt 0:00:00]} 61. f6+ {[%emt 0:00:00]} Kf7 {[%emt 0:00:00]} 62. Rxb5 {[%emt 0:02:26]} 1-0

[Event "DVM U14 2021"]
[Site "Willingen"]
[Date "2022.08.15"]
[Round "6"]
[White "Kommessin, Felix"]
[Black "Huber, Laura"]
[Result "1-0"]
[ECO "C36"]
[WhiteElo "1536"]
[BlackElo "1302"]
[Annotator "NA RC"]
[PlyCount "89"]
[EventDate "2022.08.12"]
[EventType "team-tourn"]
[EventRounds "7"]
[EventCountry "GER"]
[SourceTitle "playchess.com"]
[Source "ChessBase"]
[SourceQuality "1"]
[TimeControl "40/5400+30:1800+30"]

1. e4 {[%emt 0:00:02]} e5 {[%emt 0:00:02]} 2. f4 {[%emt 0:00:07]} exf4 {[%emt 0:03:09]} 3. Nf3 {[%emt 0:00:32]} Nf6 {[%emt 0:02:00]} 4. Nc3 {[%emt 0:01:27]} d5 {[%emt 0:04:42]} 5. exd5 {[%emt 0:01:45]} Nxd5 {[%emt 0:00:17]} 6. d4 {[%emt 0:01:07]} Nxc3 {[%emt 0:05:10]} 7. bxc3 {[%emt 0:00:23]} Bd6 {[%emt 0:00:50]} 8. Bc4 {[%emt 0:01:57]} O-O {[%emt 0:01:20]} 9. O-O {[%emt 0:00:07]} Nd7 {[%emt 0:08:54]} 10. Ne1 {[%emt 0:15:05]} Nb6 {[%emt 0:01:35]} 11. Bb3 {[%emt 0:01:44]} c5 {[%emt 0:10:05]} 12. c4 {[%emt 0:12:26]} cxd4 {[%emt 0:05:11]} 13. Qxd4 {[%emt 0:06:46]} Qc7 {[%emt 0:03:29]} 14. Nd3 {[%emt 0:14:25]} Nd7 {[%emt 0:05:20]} 15. Bxf4 {[%emt 0:06:35]} Bc5 {[%emt 0:07:47]} 16. Qxc5 {[%emt 0:05:30]} Qxc5+ {[%emt 0:03:37]} 17. Nxc5 {[%emt 0:02:17]} Nxc5 {[%emt 0:00:02]} 18. Bd6 {[%emt 0:08:30]} Nxb3 {[%emt 0:00:06]} 19. cxb3 {[%emt 0:00:05]} Re8 {[%emt 0:00:51]} 20. c5 {[%emt 0:03:55]} Bd7 {[%emt 0:04:43]} 21. Rfe1 {[%emt 0:01:04]} Rxe1+ {[%emt 0:03:57]} 22. Rxe1 {[%emt 0:00:17]} Re8 {[%emt 0:01:51]} 23. Rd1 {[%emt 0:06:06]} Bc6 {[%emt 0:01:05]} 24. Kf2 {[%emt 0:00:34]} f6 {[%emt 0:00:25]} 25. a3 {[%emt 0:05:59]} Kf7 {[%emt 0:01:53]} 26. g3 {[%emt 0:00:41]} Bd7 {[%emt 0:10:29]} 27. Bb8 {[%emt 0:03:29]} Bg4 {[%emt 0:03:13]} 28. Rd4 {[%emt 0:00:07]} Rxb8 {[%emt 0:00:13]} 29. Rxg4 {[%emt 0:00:08]} f5 {[%emt 0:05:51]} 30. Rd4 {[%emt 0:00:21]} Ke7 {[%emt 0:00:59]} 31. Ke3 {[%emt 0:00:31]} b6 {[%emt 0:03:35]} 32. c6 {[%emt 0:01:14]} Rd8 {[%emt 0:01:32]} 33. Rxd8 {[%emt 0:00:23]} Kxd8 {[%emt 0:00:00]} 34. b4 {[%emt 0:00:08]} b5 {[%emt 0:01:16]} 35. Kf4 {[%emt 0:00:37]} g6 {[%emt 0:00:21]} 36. Kg5 {[%emt 0:00:43]} Kc7 {[%emt 0:00:15]} 37. h4 {[%emt 0:00:08]} Kxc6 {[%emt 0:00:07]} 38. Kh6 {[%emt 0:00:03]} Kd6 {[%emt 0:00:19]} 39. Kxh7 {[%emt 0:00:07]} Ke7 {[%emt 0:01:16]} 40. Kxg6 {[%emt 0:00:15]} f4 {[%emt 0:00:19]} 41. gxf4 {[%emt 0:30:05]} Kf8 {[%emt 0:30:16]} 42. Kf6 {[%emt 0:00:07]} Kg8 {[%emt 0:00:08]} 43. f5 {[%emt 0:00:08]} Kf8 {[%emt 0:00:04]} 44. h5 {[%emt 0:00:08]} Kg8 {[%emt 0:00:06]} 45. Ke7 {[%emt 0:00:05]} 1-0